Workbook

Sheet Paper Oral Duty Member 2021-25
C1: Completed paper hearings conducted by the Parole Board 2021/22 - 2024/25, split by sentence type, review type and outcome
C4: Paper Hearings | E4: Determinate | I4: Life | N4: IPP
A6: 1 | C6: Review | D6: No Release | E6: To Oral | F6: Release | H6: No Release | I6: To Oral | J6: Open | K6: Release | M6: No Release | N6: To Oral | O6: Open | P6: Release
C8: 2021/22 | D8: 893 | E8: 1291 | F8: 38 | H8: 307 | I8: 947 | J8: 9 | K8: 3 | M8: 277 | N8: 900 | O8: 3 | P8: 6
C9: 2022/23 | D9: 897 | E9: 1333 | F9: 32 | H9: 233 | I9: 815 | J9: 6 | K9: 3 | M9: 199 | N9: 708 | O9: 3 | P9: 5
C10: 2023/24 | D10: 1234 | E10: 1516 | F10: 48 | H10: 362 | I10: 768 | J10: 6 | K10: 2 | M10: 237 | N10: 638 | O10: 2 | P10: 6
C11: 2024/25 | D11: 1540 | E11: 1761 | F11: 33 | H11: 320 | I11: 877 | J11: 5 | K11: 2 | M11: 204 | N11: 558 | O11: 1 | P11: 3
C13: Recall
C15: 2021/22 | D15: 7392 | E15: 4010 | F15: 617 | H15: 70 | I15: 237 | J15: NULL | K15: 12 | M15: 115 | N15: 450 | O15: NULL | P15: 29
C16: 2022/23 | D16: 7093 | E16: 3803 | F16: 553 | H16: 61 | I16: 262 | J16: NULL | K16: 5 | M16: 105 | N16: 449 | O16: NULL | P16: 18
C17: 2023/24 | D17: 6417 | E17: 2868 | F17: 555 | H17: 71 | I17: 311 | J17: NULL | K17: 20 | M17: 141 | N17: 510 | O17: NULL | P17: 44
C18: 2024/25 | D18: 7544 | E18: 3721 | F18: 407 | H18: 99 | I18: 276 | J18: 1 | K18: 11 | M18: 156 | N18: 487 | O18: 1 | P18: 25
H19: *2023/24
H20: Life and IPP (ISP) - Review and Recall Combined
H21: No Release | I21: To Oral | J21: Open
H22: 811 | I22: 2227 | J22: 8 | K22: 72
H23: *2024/25
H24: Life and IPP (ISP) - Review and Recall Combined
H25: No release | I25: To Oral | J25: Open
H26: =SUM(H11,H18,M11,M18) -> 779 | I26: =SUM(I11,I18,N11,N18) -> 2198 | J26: =SUM(J11,J18,O11,O18) -> 8 | K26: =SUM(K11,K18,P11,P18) -> 41
C34: Requests for oral hearings conducted by the Parole Board 2021/22 split by sentence type, review type and outcome
C37: Requests | E37: Determinate | H37: Life | K37: IPP
A38: 2
C39: Review | D39: Decline | E39: Grant | G39: Decline | H39: Grant | J39: Decline | K39: Grant
C41: 2021/22 | D41: 36 | E41: 99 | G41: 12 | H41: 30 | J41: 19 | K41: 36
C42: 2022/23 | D42: 54 | E42: 83 | G42: 7 | H42: 12 | J42: 11 | K42: 20
C43: 2023/24 | D43: 85 | E43: 97 | G43: 19 | H43: 25 | J43: 20 | K43: 27
C44: 2024/25 | D44: 121 | E44: 130 | G44: 31 | H44: 37 | J44: 23 | K44: 18
C46: Recall | D46: Decline | E46: Grant
C48: 2021/22 | D48: 186 | E48: 271
C49: 2022/23 | D49: 193 | E49: 217
C50: 2023/24 | D50: 233 | E50: 194
C51: 2024/25 | D51: 454 | E51: 460
C62: Completed oral hearings conducted by the Parole Board 2021/22 - 2024/25, split by sentence type, review type and outcome
A63: 3
C65: Oral Hearings | E65: Determinate | H65: Life | L65: IPP
D66: No Release | E66: Release | G66: No Release | H66: Open | I66: Release | K66: No Release | L66: Open | M66: Release
C67: Review
C68: 2021/22 | D68: 581 | E68: 519 | G68: 262 | H68: 283 | I68: 302 | K68: 252 | L68: 208 | M68: 389
C69: 2022/23 | D69: 624 | E69: 459 | G69: 259 | H69: 212 | I69: 318 | K69: 267 | L69: 163 | M69: 362
C70: 2023/24 | D70: 689 | E70: 603 | G70: 276 | H70: 217 | I70: 343 | K70: 290 | L70: 131 | M70: 335
C71: 2024/25 | D71: 847 | E71: 708 | G71: 246 | H71: 283 | I71: 283 | K71: 230 | L71: 133 | M71: 261
C74: Recall
C75: 2021/22 | D75: 1124 | E75: 1688 | G75: 45 | H75: 22 | I75: 172 | K75: 88 | L75: 41 | M75: 364
C76: 2022/23 | D76: 1169 | E76: 1472 | G76: 47 | H76: 12 | I76: 138 | K76: 94 | L76: 20 | M76: 272
C77: 2023/24 | D77: 1469 | E77: 1801 | G77: 50 | H77: 13 | I77: 221 | K77: 118 | L77: 24 | M77: 392
C78: 2024/25 | D78: 1367 | E78: 1467 | G78: 93 | H78: 19 | I78: 218 | K78: 144 | L78: 58 | M78: 454
C82: Advice
C83: 2022/23 | D83: No Release | G83: Open | K83: Release
D84: 2 | G84: 0 | K84: 0
C85: 2022/24 | D85: No Release | G85: Open | K85: Release
D86: 1 | G86: 0 | K86: 0
C87: 2024/25 | D87: No Release | G87: Open | K87: Release
D88: 0 | G88: 0 | K88: 0

Sheet Paper Oral Duty member 25-26
E2: 25/26 Completed paper hearings conducted by the Parole Board split by sentence type, review type and outcome
H8: No Release | I8: To Oral Hearing | J8: Release | K8: Open
E9: GPP | F9: ISP Review (Combined total) | H9: =SUM(H10,H11) -> 573 | I9: =SUM(I10,I11) -> 1623 | J9: =SUM(J10,J11) -> 2 | K9: 6
B10: 1 | F10: IPP Review | H10: 211 | I10: 715 | J10: 1 | K10: 0
F11: Life Review | H11: 362 | I11: 908 | J11: 1 | K11: 6
F12: ISP Recall (Combined total) | H12: =SUM(H13,H14) -> 166 | I12: =SUM(I13,I14) -> 612 | J12: 18 | K12: 0
F13: IPP Recall | H13: 87 | I13: 382 | J13: 13 | K13: 0
F14: Life Recall | H14: 79 | I14: 230 | J14: 5 | K14: 0
E15: Standard Determinate Recalls | F15: 01 Recall | H15: 6804 | I15: 2947 | J15: 282 | K15: N/A
E16: Determinate Recalls | F16: (EDS) | H16: 467 | I16: 382 | J16: 12 | K16: N/A
E17: Other Determinate | F17: Recall Reviews | H17: 21 | I17: 15 | J17: 0 | K17: N/A
E18: Determinate Conditional Release | F18: (DCR) - Pre Release | H18: 2 | I18: 2 | J18: 0 | K18: N/A
E19: EDS | F19: (Pre-Release Reviews) | H19: 1032 | I19: 952 | J19: 4 | K19: N/A
E20: Sentence of Particular Concern | F20: (SOPC) | H20: 132 | I20: 249 | J20: 2 | K20: N/A
E27: 25/26 Requests for oral hearings conducted by the Parole Board split by sentence type, review type and outcome
B29: 2 | H29: Decline | I29: Grant
E30: GPP | F30: ISP Review (Combined total) | H30: =SUM(H31,H32) -> 61 | I30: =SUM(I31,I32) -> 62
F31: IPP Review | H31: 27 | I31: 21
F32: Life Review | H32: 34 | I32: 41
E33: Standard Determinate Recalls | F33: 01 Recall | H33: 401 | I33: 412
E34: Determinate Recalls | F34: (EDS) | H34: 53 | I34: 53
E35: Other Determinate | F35: Recall Reviews | H35: 3 | I35: 1
E36: Determinate Conditional Release | F36: (DCR) - Pre Release | H36: 0 | I36: 0
E37: EDS | F37: (Pre-Release Reviews) | H37: 91 | I37: 75
E38: Sentence of Particular Concern | F38: (SOPC/SDOPC) - Pre Release | H38: 8 | I38: 17
G39: Total
E47: Completed oral hearings conducted by the Parole Board 2025/26, split by sentence type, review type and outcome
H48: No Release | I48: Release | J48: Open
B49: 3 | E49: GPP | F49: ISP Review (Combined total) | H49: =SUM(H50,H51) -> 549 | I49: =SUM(I50,I51) -> 568 | J49: 401
F50: IPP Review | H50: 245 | I50: 255 | J50: 104
F51: Life Review | H51: 304 | I51: 313 | J51: 297
F52: ISP Recall (Combined total) | H52: =SUM(H53,H54) -> 201 | I52: =SUM(I53,I54) -> 466 | J52: 96
F53: IPP Recall | H53: 121 | I53: 283 | J53: 72
F54: Life Recall | H54: 80 | I54: 183 | J54: 24
E55: Standard Determinate Recalls | F55: 01 Recall | H55: 1586 | I55: 1136 | J55: N/A
E56: Determinate Recalls | F56: (EDS) | H56: 224 | I56: 169 | J56: N/A
E57: Other Determinate | F57: Recall Reviews | H57: 29 | I57: 6 | J57: N/A
E58: Determinate Conditional Release | F58: (DCR) - Pre Release | H58: 6 | I58: 2 | J58: N/A
E59: EDS | F59: (Pre-Release Reviews) | H59: 609 | I59: 332 | J59: N/A
E60: Sentence of Particular Concern | F60: (SOPC) | H60: 127 | I60: 141 | J60: N/A

Sheet Summary
C2: Paper hearings conducted by the Parole Board 2021/22 - 2025/26 split between whether the hearing was deferred or completed
A3: 4 | C3: Year | D3: Total | E3: Completed | F3: Deferred or Adjourned
C4: 2021/22 | D4: 22530 | E4: 17606 | F4: 4924
C5: 2022/23 | D5: 21167 | E5: 16583 | F5: 4584
C6: 2023/24 | D6: 20289 | E6: 15756 | F6: 4533
C7: 2024/25 | D7: 23112 | E7: 18032 | F7: 5080
C8: 2025/26 | D8: 21485 | E8: 16305 | F8: 5180
C12: Completed paper hearings by the Parole Board 2021/22 - 2025/26 , split by outcome
C13: Year | D13: Total | E13: Negative | F13: Progression | G13: To Oral | H13: % To Oral
C14: 2021/22 | D14: 17606 | E14: 9054 | F14: 717 | G14: 7835 | H14: =G14/D14 -> 0.4450187436
A15: 5 | C15: 2022/23 | D15: 16583 | E15: 8588 | F15: 625 | G15: 7370 | H15: =G15/D15 -> 0.4444310438
C16: 2023/24 | D16: 15756 | E16: 8462 | F16: 683 | G16: 6611 | H16: =G16/D16 -> 0.4195861894
C17: 2024/25 | D17: 18032 | E17: 9863 | F17: 489 | G17: 7680 | H17: =G17/D17 -> 0.4259094942
C18: 2025/26 | D18: 16305 | E18: 9197 | F18: 326 | G18: 6782 | H18: =G18/D18 -> 0.4159460288
C24: Requests for oral hearings conducted by the Parole Board 2021/22 - 2025/26 , split by whether the request was granted or declined
C25: Year | D25: Total | E25: Decline | F25: Granted | G25: % Granted
A26: 6 | C26: 2021/22 | D26: 689 | E26: 253 | F26: 436 | G26: =F26/D26 -> 0.6328011611
C27: 2022/23 | D27: 597 | E27: 265 | F27: 332 | G27: =F27/D27 -> 0.5561139028
C28: 2023/24 | D28: 700 | E28: 357 | F28: 343 | G28: =F28/D28 -> 0.49
C29: 2024/25 | D29: 1274 | E29: 629 | F29: 645 | G29: =F29/D29 -> 0.5062794349
C30: 2025/26 | D30: 1237 | E30: 617 | F30: 620 | G30: =F30/D30 -> 0.5012126112
C35: Oral hearings conducted by the Parole Board 2021/22 - 2025/26 , split between whether the hearing was deferred or completed
C37: Year | D37: Conducted Hearings | E37: Completed Hearings | F37: Deferred Hearings | G37: Adjourned On the day | H37: % Completed
C38: 2021/22 | D38: 8835 | E38: 6344 | F38: 209 | G38: 2282 | H38: =E38/D38 -> 0.7180531975
A39: 7 | C39: 2022/23 | D39: 8085 | E39: 5890 | F39: 195 | G39: 2617 | H39: =E39/D39 -> 0.7285095857
C40: 2023/24 | D40: 8684 | E40: 6973 | F40: 141 | G40: 2688 | H40: =E40/D40 -> 0.8029709811
C41: 2024/25 | D41: 8531 | E41: 6811 | F41: 115 | G41: 2904 | H41: =E41/D41 -> 0.7983823702
C42: 2025/26 | D42: 8835 | E42: 6648 | F42: 120 | G42: 3262 | H42: =E42/D42 -> 0.7524617997
C43: 1,614 were concluded on the papers after an adjournment and these outcomes are included in the completed hearings total to AVOID DOUBLE COUNTING
C47: Completed oral hearings by the Parole Board 2021/22 - 2025/26 , split by outcome
C48: Year | D48: Total | E48: Progression | F48: Negative | G48: %Progression
A49: 8 | C49: 2021/22 | D49: 6344 | E49: 3990 | F49: 2354 | G49: =E49/D49 -> 0.6289407314
C50: 2022/23 | D50: 5890 | E50: 3428 | F50: 2462 | G50: =E50/D50 -> 0.5820033956
C51: 2023/24 | D51: 6973 | E51: 4080 | F51: 2893 | G51: =E51/D51 -> 0.5851140112
C52: 2024/25 | D52: 6811 | E52: 3884 | F52: 2927 | G52: =E52/D52 -> 0.5702540009
C53: 2025/26 | D53: 6648 | E53: 3317 | F53: 2820 | G53: =E53/D53 -> 0.4989470517
C58: All hearings conducted by the Parole Board 2021/22 - 2025/26
C59: All Hearings | D59: Total
C60: 2021/22 | D60: 32249
C61: 2022/23 | D61: 30111
C62: 2023/24 | D62: 30039
C63: 2024/25 | D63: 31979
C64: 2025/26 | D64: 31763
C72: All hearings conducted by the Parole Board 2021/22 - 2025/26 broken down by classificaton
C74: Year | D74: 2021/22 | E74: 2022/23 | F74: 2023/24 | G74: 2024/25 | H74: 2025/26
C75: Member paper hearing (Member Case Assessment) * | D75: 22530 | E75: 21167 | F75: 20289 | G75: 23112 | H75: 21485
C76: Duty Member paper hearing (All oral hearing requests Rule 20) | D76: 689 | E76: 597 | F76: 700 | G76: 1274 | H76: 1237
C77: Total paper hearings | D77: 23219 | E77: 21764 | F77: 20989 | G77: 23112 | H77: 21485
C78: Reconsideration applications Considered | D78: 195 | E78: 262 | F78: 276 | G78: 249 | H78: 291
C79: Set Aside applications considered | D79: N/A | E79: N/A | F79: 90 | G79: 87 | H79: 97
C80: IPP Licence Terminations | D80: N/A | E80: N/A | F80: N/A | G80: N/A | H80: 1359
C81: Total oral hearings | D81: 8835 | E81: 8085 | F81: 8684 | G81: 8531 | H81: 8531
C82: Total hearings | D82: =SUM(D77:D81) -> 32249 | E82: =SUM(E77:E81) -> 30111 | F82: =SUM(F77:F81) -> 30039 | G82: =SUM(G77:G81) -> 31979 | H82: =SUM(H77:H81) -> 31763
